fUST/lending_fUST_20260201
["ID","MTS","AMOUNT","RATE_DAILY","PERIOD"]
[404176208,1769899832351,-500.0,0.00013547,2]
[404176209,1769899832359,-300.0,0.00013673,2]
[404176210,1769899832368,-198.01440201,0.00013698,2]
[404176211,1769899832377,-500.0,0.00013698,2]
[404176212,1769899832387,-500.0,0.00013699,2]
[404176213,1769899832396,-500.0,0.00013699,2]
[404176214,1769899832405,-318.32989685,0.00013699,2]
[404176215,1769899832415,-289.45772144,0.00013699,2]
[404176216,1769899832424,-500.0,0.00013699,2]
[404176217,1769899832434,-498.67567994,0.00013699,2]
[404176218,1769899832443,-500.0,0.00013699,2]
[404176219,1769899832452,-500.0,0.00013699,2]
[404176220,1769899832461,-500.0,0.00013699,2]
[404176221,1769899832471,-500.0,0.00013699,2]
[404176222,1769899832480,-500.0,0.00013699,2]
[404176223,1769899832491,-500.0,0.00013699,2]
[404176224,1769899832500,-356.03228176,0.00013699,2]
[404176225,1769899832511,-500.0,0.00013699,2]
[404176226,1769899832522,-500.0,0.00013699,2]
[404176227,1769899832531,-500.0,0.00013699,2]
[404176228,1769899832540,-500.0,0.00013699,2]
[404176229,1769899832549,-500.0,0.00013699,2]
[404176230,1769899832558,-500.0,0.00013699,2]
[404176231,1769899832567,-500.0,0.00013699,2]
[404176232,1769899832577,-500.0,0.00013699,2]
[404176233,1769899832588,-500.0,0.00013699,2]
[404176234,1769899832598,-501.93006265,0.00013699,2]
[404176235,1769899832607,-500.0,0.00013699,2]
[404176236,1769899832617,-500.0,0.00013699,2]
[404176237,1769899832626,-500.0,0.00013699,2]
[404176238,1769899832635,-500.0,0.00013699,2]
[404176239,1769899832644,-500.0,0.00013699,2]
[404176240,1769899832654,-500.0,0.00013699,2]
[404176241,1769899832662,-500.0,0.00013699,2]
[404176242,1769899832671,-500.33960277,0.00013699,2]
[404176243,1769899832681,-500.0,0.00013699,2]
[404176244,1769899832690,-538.71956343,0.00013699,2]
[404176245,1769899832699,-500.0,0.00013699,2]
[404176246,1769899832708,-500.0,0.00013699,2]
[404176247,1769899832717,-375.59928097,0.00013699,2]
[404176248,1769899832728,-500.0,0.00013699,2]
[404176249,1769899832737,-158.69635635,0.00013699,2]
[404176250,1769899832747,-500.0,0.00013699,2]
[404176251,1769899832758,-500.0,0.00013699,2]
[404176252,1769899832767,-155.65,0.000138,2]
[404176253,1769899832776,-306.89769347,0.0001382,2]
[404176254,1769899832785,-851.11865751,0.00013821,2]
[404176255,1769899832795,-1119.57314068,0.00013821,2]
[404176256,1769899832804,-1000.0,0.00013821,2]
[404176257,1769899832813,-1059.00085584,0.00013821,2]
[404176258,1769899832825,-268.34650551,0.00013821,2]
[404176259,1769899832835,-1000.0,0.00013821,2]
[404176260,1769899832845,-500.0,0.00013821,2]
[404176261,1769899832854,-538.93586168,0.00013821,2]
[404176262,1769899832863,-1000.0,0.00013821,2]
[404176263,1769899832872,-1000.0,0.00013821,2]
[404176264,1769899832881,-1000.0,0.00013821,2]
[404176265,1769899832891,-1000.0,0.00013821,2]
[404176266,1769899832901,-1000.0,0.00013821,2]
[404176267,1769899832910,-1000.0,0.00013821,2]
[404176268,1769899832919,-1000.0,0.00013821,2]
[404176269,1769899832929,-1000.0,0.00013821,2]
[404176270,1769899832939,-1000.0,0.00013821,2]
[404176271,1769899832949,-175.84126355,0.00013821,2]
[404176272,1769899832959,-1000.0,0.00013821,2]
[404176273,1769899832968,-1000.0,0.00013821,2]
[404176274,1769899832979,-1000.0,0.00013821,2]
[404176275,1769899832989,-500.0,0.00013836,2]
[404176276,1769899832999,-150.67355168,0.00013836,2]
[404176277,1769899833008,-500.0,0.00013836,2]
[404176278,1769899833017,-200.0,0.00013836,2]
[404176279,1769899833027,-200.0,0.00013836,2]
[404176280,1769899833036,-500.0,0.00013836,2]
[404176281,1769899833046,-200.0,0.00013836,2]
[404176282,1769899833055,-250.0,0.00013836,2]
[404176283,1769899833064,-4388.5,0.00013853,2]
[404176284,1769899833074,-500.0,0.00013973,2]
[404176285,1769899833084,-500.0,0.00013973,2]
[404176286,1769899833093,-500.0,0.00013973,2]
[404176287,1769899833102,-420.0,0.00013999,2]
[404176288,1769899833112,-720.0,0.0001404,2]
[404176289,1769899833126,-500.0,0.0001411,2]
[404176290,1769899833135,-500.0,0.0001411,2]
[404176291,1769899833145,-500.0,0.0001411,2]
[404176292,1769899833154,-166.38,0.00014147,2]
[404176293,1769899833164,-166.38,0.00014147,2]
[404176294,1769899833173,-166.38,0.00014147,2]
[404176295,1769899833182,-166.38,0.00014147,2]
[404176296,1769899833191,-166.38,0.00014147,2]
[404176297,1769899833200,-600.0,0.00014221,2]
[404176298,1769899833209,-259.55539897,0.00014247,2]
[404176299,1769899833219,-613.5354249,0.00014247,2]
[404176300,1769899833229,-474.23438198,0.00014247,2]
[404176301,1769899833238,-1000.0,0.00014247,2]
[404176302,1769899833247,-1000.0,0.00014247,2]
[404176303,1769899833256,-1000.0,0.00014247,2]
[404176304,1769899833266,-1000.0,0.00014247,2]
[404176305,1769899833275,-1000.0,0.00014247,2]
[404176306,1769899833284,-1000.0,0.00014247,2]
[404176307,1769899833293,-500.0,0.00014247,2]
[404176308,1769899833303,-1000.0,0.00014247,2]
[404176309,1769899833312,-1000.0,0.00014247,2]
[404176310,1769899833322,-1000.0,0.00014247,2]
[404176311,1769899833411,-626.30118058,0.00014247,2]
[404176312,1769899833420,-1000.0,0.00014247,2]
[404176313,1769899833430,-1000.0,0.00014247,2]
[404176314,1769899833439,-500.0,0.00014247,2]
[404176315,1769899833449,-500.0,0.00014247,2]
[404176316,1769899833459,-500.0,0.00014247,2]
[404176317,1769899833468,-1500.0,0.00014368,2]
[404176318,1769899833477,-1500.0,0.00014368,2]
[404176319,1769899833486,-520.98844471,0.00014368,2]
[404176320,1769899833504,-479.01155529,0.00014368,2]
[404176321,1769899833514,-524.63271645,0.00014368,2]
[404176322,1769899833524,-135.40362322,0.00014368,2]
[404176346,1769899837951,-381.87361532,0.00014368,2]
[404176348,1769899837960,-268.7734348,0.00014368,2]
[404176350,1769899837969,-1500.0,0.00014368,2]
[404176352,1769899837979,-1500.0,0.00014368,2]
[404176354,1769899837988,-1500.0,0.00014368,2]
[404176356,1769899837997,-500.0,0.00014368,2]
[404176358,1769899838007,-1500.0,0.00014368,2]
[404176360,1769899838017,-1500.0,0.00014368,2]
[404176362,1769899838025,-500.0,0.00014368,2]
[404176364,1769899838035,-500.0,0.00014384,2]
[404176366,1769899838044,-500.0,0.00014384,2]
[404176368,1769899838053,-300.0,0.00014384,2]
[404176370,1769899838063,-600.0,0.00014521,2]
[404176372,1769899838071,-300.0,0.00014768,2]
[404176374,1769899838080,-1500.0,0.00014795,2]
[404176375,1769899838090,-1500.0,0.00014795,2]
[404176378,1769899838099,-500.0,0.00014795,2]
[404176379,1769899838109,-629.28367097,0.00014795,2]
[404176381,1769899838122,-500.0,0.00014795,2]
[404176383,1769899838131,-1500.0,0.00014795,2]
[404176385,1769899838140,-1500.0,0.00014795,2]
[404176387,1769899838149,-500.0,0.00014795,2]
[404176389,1769899838159,-2000.0,0.00014916,2]
[404176391,1769899838169,-2000.0,0.00014916,2]
[404176392,1769899838178,-710.64101663,0.00014916,2]
[404176393,1769899838190,-1000.0,0.00014916,2]
[404176394,1769899838199,-1500.0,0.00014916,2]
[404176395,1769899838208,-1114.74792532,0.00014916,2]
[404176396,1769899838218,-2000.0,0.00014916,2]
[404176397,1769899838227,-184.990924,0.00015068,2]
[404176398,1769899838236,-501.79642948,0.00015342,2]
[404176399,1769899838246,-2000.0,0.00015342,2]
[404176400,1769899838255,-1227.72467895,0.00015342,2]
[404176401,1769899838264,-2000.0,0.00015342,2]
[404176402,1769899838274,-587.0,0.00015356,2]
[404176403,1769899838284,-864.0,0.00015444,2]
[404176404,1769899838293,-1744.71254619,0.00015464,2]
[404176405,1769899838303,-2500.0,0.00015464,2]
[404176406,1769899838312,-2500.0,0.00015464,2]
[404176407,1769899838321,-1296.25821529,0.0001589,2]
[404176408,1769899838332,-3000.0,0.00016012,2]
[404176409,1769899838342,-533.196166,0.0001604,2]
[404176410,1769899838352,-923.93375556,0.0001656,2]
[404176411,1769899838361,-533.196166,0.00016715,2]
[404176412,1769899838370,-818.0,0.00016844,2]
[404176413,1769899838379,-1000.0,0.00016988,2]
[404176414,1769899838389,-533.196166,0.0001739,2]
[404176415,1769899838399,-755.6452515,0.00017824,2]
[404176416,1769899838409,-49804.3440819,0.00017824,2]
[404176417,1769899838419,-863.39044948,0.000179,2]
[404176418,1769899838428,-200.0,0.00017999,2]
[404176419,1769899838438,-599135.8419987,0.00018,2]
[404176420,1769899838448,-136267.11476442,0.00018,2]
[404176421,1769899838457,-533.196166,0.00018065,2]
[404176422,1769899838467,-1000.0,0.00018687,2]
[404176423,1769899838477,-244.0,0.00018687,2]
[404176424,1769899838486,-533.196166,0.0001874,2]
[404176425,1769899838497,-357.7681017,0.00019,20]
[404176426,1769899838507,-13146.30910608,0.00019,2]
[404176427,1769899838516,-166137.62855075,0.000192,3]
[404176428,1769899838526,-157.61,0.000192,2]
[404176429,1769899838536,-1623.36,0.000192,2]
[404176430,1769899838545,-222.42,0.000192,2]
[404176431,1769899838555,-533.196166,0.00019416,2]
[404176432,1769899838564,-755.6452515,0.00019916,2]
[404176433,1769899838573,-375.74929237,0.0002,30]
[404176434,1769899838583,-14726.28615304,0.0002,2]
[404176435,1769899838593,-40778.82840029,0.0002,2]
[404176436,1769899838603,-4312.71333601,0.0002,7]
[404176437,1769899838614,-6434.02130439,0.0002,7]
[404176438,1769899838624,-734.02120821,0.00020004,2]
[404176439,1769899838633,-1000.0,0.00020555,2]
[404176440,1769899838643,-492.0,0.00020555,2]
[404176441,1769899838654,-256.94154564,0.000209,2]
[404176442,1769899838664,-9357.66791339,0.00021,7]
[404176443,1769899838673,-472.276456,0.00021187,2]
[404176444,1769899838682,-1593.06,0.00021427,3]
[404176445,1769899838692,-11112.851271,0.00021727,2]
[404176446,1769899838702,-454.63175159,0.00022,2]
[404176447,1769899838712,-155.88,0.00022,7]
[404176448,1769899838723,-755.6452515,0.00022008,2]
[404176449,1769899838738,-706.77955541,0.00022452,4]
[404176450,1769899838748,-2479.6122838,0.00022597,2]
[404176451,1769899838757,-1000.0,0.00022611,10]
[404176452,1769899838766,-791.0,0.00022611,10]
[404176453,1769899838775,-160.0,0.00022959,8]
[404176454,1769899838784,-250.31775921,0.00023254,2]
[404176455,1769899838793,-447.59072161,0.00023616,2]
[404176456,1769899838803,-520.61540906,0.00024,2]
[404176457,1769899838812,-755.6452515,0.000241,2]
[404176458,1769899838821,-160.0,0.00024268,2]
[404176459,1769899838831,-137862.1173044,0.0002465,2]
[404176460,1769899838840,-514.91000007,0.0002465,2]
[404176461,1769899838850,-150.0,0.00024658,2]
[404176462,1769899838859,-2310.01084647,0.00024774,2]
[404176463,1769899838868,-1000.0,0.00024872,10]
[404176464,1769899838878,-1000.0,0.00024872,10]
[404176465,1769899838888,-64997.735548,0.000249,2]
[404176466,1769899838897,-4001.00262726,0.00025,2]
[404176467,1769899838906,-300.20523241,0.00025205,2]
[404176468,1769899838919,-900.0,0.00025469,3]
[404176469,1769899838928,-1000.0,0.000255,2]
[404176470,1769899838938,-173.0,0.00025699,17]
[404176471,1769899838947,-17816.801942,0.00026,30]
[404176472,1769899838958,-222.42,0.00026,14]
[404176473,1769899838967,-1321.23817478,0.00026129,2]
[404176474,1769899838976,-200.0,0.0002654,14]
[404176475,1769899838985,-1623.36,0.000269,2]
[404176476,1769899838994,-1000.0,0.00027359,30]
[404176477,1769899839003,-1000.0,0.00027359,30]
[404176478,1769899839012,-579.0,0.00027359,30]
[404176479,1769899839021,-184.990924,0.00028767,60]
[404176480,1769899839030,-173.0,0.00029534,35]
[404176481,1769899839040,-1000.0,0.00030095,30]
[404176482,1769899839049,-1000.0,0.00030095,30]
[404176483,1769899839059,-1000.0,0.00030095,30]
[404176484,1769899839068,-242.81521,0.000305,120]
[404176485,1769899839077,-200.0,0.000305,120]
[404176486,1769899839086,-260.78391882,0.00031,120]
[404176487,1769899839096,-164.57044202,0.00031,120]
[404176488,1769899839105,-201.2716677,0.00031,120]
[404176489,1769899839119,-257.75194912,0.00031,120]
[404176490,1769899839128,-206.24088797,0.00031,120]
[404176491,1769899839137,-184.3161173,0.00031,120]
[404176492,1769899839147,-220.84246738,0.00031,120]
[404176493,1769899839157,-239.968,0.00031,120]
[404176494,1769899839166,-225.56607562,0.00031,120]
[404176495,1769899839175,-220.39809165,0.00031,120]
[404176496,1769899839185,-236.27182783,0.00031,120]
[404176497,1769899839196,-162.93564151,0.00031,120]
[404176498,1769899839205,-184.52113141,0.00031,120]
[404176499,1769899839215,-178.92208645,0.00031014,10]
[404176500,1769899839224,-157.43607312,0.00031014,10]
[404176501,1769899839233,-472.276456,0.0003178,2]
[404176502,1769899839242,-201.2716677,0.000319,120]
[404176503,1769899839251,-257.75194912,0.000319,120]
[404176504,1769899839261,-225.56607562,0.000319,120]
[404176505,1769899839270,-220.39809165,0.000319,120]
[404176506,1769899839279,-236.27182783,0.000319,120]
[404176507,1769899839288,-200.0,0.000322,120]
[404176508,1769899839298,-2348.86786628,0.00032255,2]
[404176509,1769899839307,-150.10224934,0.00032876,2]
[404176510,1769899839316,-458.48,0.00032877,10]
[404176511,1769899839325,-785.08,0.00032877,10]
[404176512,1769899839334,-17.81420659,0.00032877,2]
[404176513,1769899839364,-132.18579341,0.00032877,2]
[404176514,1769899839373,-257.75194912,0.000329,120]
[404176515,1769899839383,-450.57196657,0.00032945,2]
[404176516,1769899839393,-2555.70431177,0.00033,2]
[404176533,1769899840232,-303.17,0.00033,2]
[404176541,1769899844591,-400.0,0.0003299,10]
[404176545,1769899846116,-254.23,0.0003299,10]
[404176546,1769899846128,-110515.67810388,0.00033,2]
[404176547,1769899846138,-93896.59921995,0.00033,2]
[404176548,1769899846232,-37.31448487,0.00033,2]
[404176549,1769899846253,-3116.18181506,0.00033,2]
[404176551,1769899878971,473.969231,0.00037619,31]
[404176552,1769899879253,473.969231,0.00037619,31]
[404176553,1769899879552,473.969231,0.00037619,31]
[404176555,1769899879862,473.969231,0.00037619,31]
[404176556,1769899880146,473.969231,0.00037619,31]
[404176557,1769899880441,473.969231,0.00037619,31]
[404176558,1769899880735,473.969231,0.00037619,31]
[404176559,1769899881010,473.969231,0.00037619,31]
[404176560,1769899881307,473.969231,0.00037619,31]
[404176561,1769899881594,473.969231,0.00037619,31]
[404176562,1769899881890,473.969231,0.00037619,31]
[404176563,1769899882183,473.969231,0.00037619,31]
[404176564,1769899883033,473.969231,0.00037619,31]
[404176565,1769899883429,473.969231,0.00037619,31]
[404176566,1769899883615,473.969231,0.00037619,31]
[404176567,1769899883905,473.969231,0.00037619,31]
[404176568,1769899884180,473.969231,0.00037619,31]
[404176569,1769899884466,473.969231,0.00037619,31]
[404176570,1769899885066,473.969231,0.00037619,31]
[404176571,1769899885359,473.969234,0.00037619,31]
[404176573,1769899896046,151.0,0.00037619,31]
[404176574,1769899896340,151.0,0.00037619,31]
[404176575,1769899896648,151.0,0.00037619,31]
[404176576,1769899896953,151.0,0.00037619,31]
[404176577,1769899897209,151.0,0.00037619,31]
[404176578,1769899897498,151.0,0.00037619,31]
[404176579,1769899897779,280.476982,0.00037619,31]
[404176580,1769899898146,151.0,0.00037619,31]
[404176581,1769899898451,151.0,0.00037619,31]
[404176582,1769899898750,151.0,0.00037619,31]
[404176583,1769899899068,151.0,0.00037619,31]
[404176584,1769899899332,151.0,0.00037619,31]
[404176585,1769899899618,151.0,0.00037619,31]
[404176586,1769899899901,151.0,0.00037619,31]
[404176587,1769899900197,151.0,0.00037619,31]
[404176588,1769899900740,151.0,0.00037619,31]
[404176589,1769899901020,151.0,0.00037619,31]
[404176590,1769899901304,151.0,0.00037619,31]
[404176591,1769899901595,151.0,0.00037619,31]
[404176592,1769899901881,151.0,0.00037619,31]
[404176593,1769899902182,151.0,0.00037619,31]
[404176594,1769899902471,151.0,0.00037619,31]
[404176595,1769899902763,151.0,0.00037619,31]
[404176596,1769899903079,151.0,0.00037619,31]
[404176597,1769899903372,151.0,0.00037619,31]
[404176598,1769899903660,282.663931,0.00037619,31]
[404176606,1769900048376,151.0,0.00037619,31]
[404176607,1769900048684,229.080672,0.00037619,31]
[404176610,1769900112285,-349.77,0.000132,2]
[404176611,1769900112324,-300.0,0.00013272,2]
[404176612,1769900112357,-300.0,0.00013272,2]
[404176613,1769900112401,-300.0,0.00013272,2]
[404176614,1769900112441,-1200.0,0.00013272,2]
[404176617,1769900128073,256.64624405,0.00013173,2]
[404176618,1769900130537,272.47,0.00030137,120]
[404176619,1769900135632,4843.82375595,0.00013272,2]
[404176620,1769900135662,156.17624405,0.00013272,2]
[404176621,1769900143613,5000.0,0.00013272,2]
[404176622,1769900158924,4843.83375595,0.00013272,2]
[404176623,1769900158951,156.16624405,0.00013272,2]
[404176624,1769900162926,300.0,0.00013272,2]
[404176625,1769900166660,5000.0,0.00013272,2]
[404176626,1769900176782,4543.84375595,0.00012948,2]
[404176627,1769900176808,10000.01,0.00012948,2]
[404176628,1769900176833,10000.01,0.00012948,2]
[404176629,1769900176857,2093.79250995,0.00012948,2]
[404176630,1769900189420,5000.0,0.00013172,2]
[404176631,1769900193037,151.0,0.0003757,31]
[404176632,1769900193377,151.0,0.0003757,31]
[404176633,1769900193674,151.0,0.0003757,31]
[404176634,1769900193960,151.0,0.0003757,31]
[404176635,1769900194253,151.0,0.0003757,31]
[404176636,1769900194551,151.0,0.0003757,31]
[404176637,1769900194863,151.0,0.0003757,31]
[404176638,1769900195198,151.0,0.0003757,31]
[404176639,1769900195757,151.0,0.0003757,31]
[404176640,1769900196031,151.0,0.0003757,31]
[404176641,1769900196305,151.0,0.0003757,31]
[404176642,1769900196638,272.448144,0.0003757,31]
[404176645,1769900386718,-0.01,0.00012886,2]
[404176646,1769900386962,-0.02,0.00012886,2]
[404176647,1769900387098,-0.04,0.00012886,2]
[404176648,1769900387207,-0.08,0.00012886,2]
[404176649,1769900387354,-0.16,0.00012886,2]
[404176650,1769900387462,-0.32,0.00012886,2]
[404176651,1769900387506,-5705.09749005,0.00012886,2]
[404176652,1769900387577,-4294.27250995,0.00012886,2]
[404176653,1769900403475,500.0,0.00012886,2]
[404176654,1769900403838,475.08470335,0.00012886,2]
[404176655,1769900404521,436.38027675,0.00013162,2]
[404176656,1769900404548,1519.54575133,0.00013162,2]
[404176657,1769900412403,151.0,0.00037624,31]
[404176658,1769900413026,156.587,0.00037624,31]
[404176659,1769900413643,162.380719,0.00037624,31]
[404176660,1769900414261,168.3888056,0.00037624,31]
[404176661,1769900414925,174.61919141,0.00037624,31]
[404176662,1769900415550,181.08010149,0.00037624,31]
[404176663,1769900416236,187.78006525,0.00037624,31]
[404176664,1769900416846,194.72792766,0.00037624,31]
[404176665,1769900417485,201.93286099,0.00037624,31]
[404176666,1769900418121,209.40437684,0.00037624,31]
[404176667,1769900418733,217.15233878,0.00037624,31]
[404176668,1769900419341,225.18697532,0.00037624,31]
[404176669,1769900419946,233.51889341,0.00037624,31]
[404176670,1769900420553,242.15909246,0.00037624,31]
[404176671,1769900421167,251.11897888,0.00037624,31]
[404176672,1769900421835,260.4103811,0.00037624,31]
[404176673,1769900422436,270.0455652,0.00037624,31]
[404176674,1769900423051,280.03725112,0.00037624,31]
[404176675,1769900423675,290.39862941,0.00037624,31]
[404176676,1769900424380,290.39862941,0.00037624,31]
[404176677,1769900447837,300.0,0.00012793,2]
[404176679,1769900563840,9700.01,0.00013073,2]
[404176680,1769900563870,962.33483381,0.00013073,2]
[404176681,1769900568450,5000.0,0.00013163,2]
[404176682,1769900591814,4037.67516619,0.00013163,2]
[404176683,1769900591842,962.32483381,0.00013163,2]
[404176684,1769900614185,5000.0,0.00013163,2]
[404176685,1769900636250,4037.68516619,0.00013163,2]
[404176686,1769900636274,962.31483381,0.00013163,2]
[404176687,1769900658588,5000.0,0.00013163,2]
[404176688,1769900681757,4037.69516619,0.00013163,2]
[404176689,1769900681785,962.30483381,0.00013163,2]
[404176690,1769900688109,250.0,0.000121,2]
[404176691,1769900702363,8787.70516619,0.00013073,2]
[404176692,1769900702395,10000.01,0.00013073,2]
[404176693,1769900702425,10000.01,0.00013073,2]
[404176694,1769900702459,10000.01,0.00013073,2]
[404176695,1769900702486,10000.01,0.00013073,2]
[404176696,1769900702515,10000.01,0.00013073,2]
[404176697,1769900702544,10000.01,0.00013073,2]
[404176698,1769900717626,151.0,0.00037624,31]
[404176699,1769900718245,156.587,0.00037624,31]
[404176700,1769900718863,162.380719,0.00037624,31]
[404176701,1769900719512,168.3888056,0.00037624,31]
[404176702,1769900720132,174.61919141,0.00037624,31]
[404176703,1769900720749,181.08010149,0.00037624,31]
[404176704,1769900721364,187.78006525,0.00037624,31]
[404176705,1769900721968,194.72792766,0.00037624,31]
[404176706,1769900723082,201.93286099,0.00037624,31]
[404176707,1769900723585,-5000.0,0.00012813,2]
[404176708,1769900723829,-5000.0,0.00012942,2]
[404176709,1769900724235,209.40437684,0.00037624,31]
[404176710,1769900724886,217.15233878,0.00037624,31]
[404176711,1769900726007,225.18697532,0.00037624,31]
[404176712,1769900726670,233.51889341,0.00037624,31]
[404176713,1769900727280,242.15909246,0.00037624,31]
[404176714,1769900727886,251.11897888,0.00037624,31]
[404176715,1769900728502,260.4103811,0.00037624,31]
[404176716,1769900729146,270.0455652,0.00037624,31]
[404176717,1769900729802,280.03725112,0.00037624,31]
[404176718,1769900730926,290.39862941,0.00037624,31]
[404176719,1769900731586,290.39862941,0.00037624,31]
[404176720,1769900783454,0.01,0.00012219,2]
[404176721,1769900783479,213.4676042,0.00012219,2]
[404176722,1769900802367,9786.5423958,0.00012148,2]
[404176723,1769900802390,10000.01,0.00012148,2]
[404176724,1769900802417,10000.01,0.00012148,2]
[404176725,1769900802440,10000.01,0.00012148,2]
[404176726,1769900802549,10000.01,0.00012148,2]
[404176727,1769900802574,10000.01,0.00012148,2]
[404176728,1769900802598,4189.0497728,0.00012148,2]
[404176729,1769900831190,-399.4639359,0.00012972,2]
[404176730,1769900831212,-119.68267239,0.00012999,2]
[404176731,1769900845812,517.54569029,0.00037624,120]
[404176732,1769900946166,-300.0,0.00012999,2]
[404176733,1769900946187,-300.0,0.00012999,2]
[404176734,1769900946207,-150.0,0.00013,2]
[404176735,1769900946227,-1307.15609989,0.00013,2]
[404176736,1769900946246,-8738.55806095,0.00013,2]
[404176737,1769900950096,-1229.4366054,0.00013,2]
[404176738,1769900950116,-50000.0,0.00013072,2]
[404176739,1769900950135,-1200.0,0.00013072,2]
[404176740,1769900950159,-130233.153219,0.00013073,2]
[404176741,1769900964106,-15399.40514266,0.00013073,2]
[404176742,1769900964137,-13025.64452267,0.00013073,2]
[404176743,1769900967096,-500.0,0.00013071,2]
[404176744,1769900967117,-500.0,0.00013071,2]
[404176745,1769900967138,-500.0,0.00013071,2]
[404176746,1769900967158,-500.0,0.00013071,2]
[404176747,1769900967177,-500.0,0.00013071,2]
[404176748,1769900967197,-156.35110845,0.00013071,2]
[404176749,1769900967218,-500.0,0.00013071,2]
[404176750,1769900967237,-500.0,0.00013071,2]
[404176751,1769900967257,-500.0,0.00013071,2]
[404176752,1769900967277,-500.0,0.00013071,2]
[404176753,1769900967299,-4568.18258293,0.00013073,2]
[404176754,1769901028509,-300.0,0.0001307,2]
[404176755,1769901028541,-300.0,0.0001307,2]
[404176756,1769901028572,-300.0,0.0001307,2]
[404176757,1769901028604,-300.0,0.0001307,2]
[404176758,1769901028634,-1200.0,0.0001307,2]
[404176780,1769901032040,-500.0,0.00013071,2]
[404176781,1769901032050,-444.98688562,0.00013071,2]
[404176784,1769901032059,-500.0,0.00013071,2]
[404176785,1769901032069,-278.94569225,0.00013072,2]
[404176788,1769901032078,-6094.10338079,0.00013073,2]
[404176790,1769901032089,-135995.50636074,0.00013073,2]
[404176948,1769901038464,-1339249.57851051,0.00013073,2]
[404176997,1769901040383,-422.73795588,0.00013073,2]
[404177255,1769901045442,-1319.90079212,0.00013073,2]
[404177270,1769901046729,-37022.7765611,0.00013073,2]
[404177271,1769901046744,-3628.69651627,0.00013073,2]
[404177272,1769901046764,-79641.22789224,0.00013073,2]
[404177273,1769901046776,-3306.4999967,0.00013073,2]
[404177308,1769901112819,5200.01,0.00013,2]
[404177309,1769901112844,3521.98533303,0.00013,2]
[404177310,1769901114113,5000.0,0.0001307,2]
[404177353,1769901136443,1478.02466697,0.0001307,2]
[404177354,1769901136469,3521.97533303,0.0001307,2]
[404177355,1769901159260,5000.0,0.0001307,2]
[404177356,1769901182894,1478.03466697,0.0001307,2]
[404177357,1769901182923,3521.96533303,0.0001307,2]
[404177368,1769901187399,6478.04466697,0.00012973,2]
[404177370,1769901187431,10000.01,0.00012973,2]
[404177371,1769901187462,10000.01,0.00012973,2]
[404177373,1769901187493,10000.01,0.00012973,2]
[404177374,1769901187524,10000.01,0.00012973,2]
[404177375,1769901187558,10000.01,0.00012973,2]
[404177376,1769901187590,10000.01,0.00012973,2]
[404177377,1769901187621,10000.01,0.00012973,2]
[404177378,1769901187651,10000.01,0.00012973,2]
[404177480,1769901206115,-5000.0,0.00012843,2]
[404177485,1769901206627,-5000.0,0.00012715,2]
[404177524,1769901213668,-2439.26795249,0.00012973,2]
[404177535,1769901216428,-10000.01,0.00012973,2]
[404177538,1769901216540,-10000.01,0.00012973,2]
[404177540,1769901216696,-10000.01,0.00012973,2]
[404177542,1769901216845,-10000.01,0.00012973,2]